bitfinex/quotes_ETHUSD_20240709
["timestamp","ask_amount","ask_price","bid_price","bid_amount"]
[1720526996494,2.2815,3088.6,3087.4,3.0]
[1720526996695,0.53511134,3088.5,3087.4,3.0]
[1720526996898,2.3771,3088.4,3087.4,3.0]
[1720526997121,0.53518293,3088.3,3087.4,3.0]
[1720526997631,0.53518268,3088.3,3087.4,3.0]
[1720526999029,0.58342867,3088.3,3087.4,3.0]
[1720526999320,0.53518268,3088.3,3087.4,3.0]
[1720526999902,2.3771,3088.4,3087.4,3.0]
[1720527000101,0.53512083,3088.3,3087.4,3.0]
[1720527000745,0.53512083,3088.3,3087.7,2.805]
[1720527001066,2.4507,3088.7,3088.1,2.805]
[1720527001342,0.53500569,3088.6,3088.1,2.805]
[1720527001545,0.53500501,3088.6,3088.1,2.805]
[1720527002406,0.53495527,3088.6,3088.1,2.805]
[1720527003101,2.4507,3088.7,3088.1,2.805]
[1720527003305,0.5348555,3088.6,3088.1,2.805]
[1720527003924,0.53481047,3088.6,3088.1,2.805]
[1720527004246,2.4507,3088.7,3088.1,2.805]
[1720527005517,2.4507,3088.7,3087.8,3.0]
[1720527006101,0.53479082,3088.6,3087.8,3.0]
[1720527010660,0.53479082,3088.6,3087.9,0.0647546]
[1720527010945,2.4573,3089.2,3088.2,2.805]
[1720527011136,0.5347618,3089.1,3088.2,2.805]
[1720527011915,0.53470372,3089.1,3088.2,2.805]
[1720527012452,0.53469768,3089.1,3088.2,2.805]
[1720527012856,2.4573,3089.2,3088.2,2.805]
[1720527013153,0.53474966,3089.1,3088.2,2.805]
[1720527015563,2.4573,3089.2,3088.2,2.805]
[1720527015856,0.53469762,3089.1,3088.2,2.805]
[1720527016216,0.53469762,3089.1,3088.3,0.06474334]
[1720527016458,0.53469762,3089.4,3088.6,2.805]
[1720527019140,2.4784,3089.5,3088.6,2.805]
[1720527019460,0.53511125,3089.4,3088.7,0.06474332]
[1720527019775,2.4784,3089.5,3088.7,0.06474332]
[1720527020149,2.2695,3090.0,3089.0,2.805]
[1720527020493,0.53497576,3089.9,3089.0,2.805]
[1720527021785,2.2786,3089.8,3089.0,2.805]
[1720527021960,0.53497576,3089.7,3089.0,2.805]
[1720527022488,0.53501277,3089.7,3089.0,2.805]
[1720527022890,0.53500895,3089.7,3089.0,2.805]
[1720527023593,0.53501096,3089.7,3089.0,2.805]
[1720527023756,0.81637206,3089.7,3089.0,2.805]
[1720527023951,0.81637206,3089.7,3088.7,3.0]
[1720527024189,0.04824599,3089.6,3088.7,3.0]
[1720527025403,2.4441,3089.5,3088.2,5.0568]
[1720527025617,0.78424556,3089.4,3088.2,5.0568]
[1720527025770,0.2492346,3089.4,3088.2,5.0568]
[1720527026113,0.78423399,3089.4,3088.2,5.0568]
[1720527026412,0.04824599,3089.3,3088.2,2.805]
[1720527026565,2.2642,3089.2,3088.2,2.805]
[1720527026767,0.81641939,3089.1,3088.2,2.805]
[1720527026972,2.2642,3088.9,3087.8,2.805]
[1720527027286,0.58324538,3088.8,3087.8,2.805]
[1720527028465,0.53499939,3088.8,3087.9,3.0]
[1720527029168,2.2642,3088.9,3087.9,3.0]
[1720527029800,0.53498214,3088.8,3087.9,3.0]
[1720527032390,0.04824599,3088.8,3087.9,3.0]
[1720527032627,0.53515384,3088.8,3087.9,3.0]
[1720527032791,2.2642,3088.9,3087.9,3.0]
[1720527032992,0.53512706,3088.8,3087.9,3.0]
[1720527033232,2.2642,3088.9,3087.9,3.0]
[1720527033532,2.2642,3088.9,3088.2,2.805]
[1720527034393,2.2642,3088.9,3088.3,0.0647552]
[1720527034594,7.36,3089.2,3088.2,2.805]
[1720527035029,0.5350856,3089.1,3088.2,2.805]
[1720527035437,2.4141,3089.0,3088.2,2.805]
[1720527037135,0.53504116,3088.9,3088.2,2.805]
[1720527037334,2.4141,3089.0,3088.2,2.805]
[1720527037521,0.53507769,3088.9,3088.2,2.805]
[1720527037845,2.4141,3089.0,3088.2,2.805]
[1720527038307,0.53509897,3088.9,3088.2,2.805]
[1720527041197,0.04824599,3088.8,3088.2,2.805]
[1720527041408,0.53509897,3088.9,3088.2,2.805]
[1720527041822,0.04824599,3088.8,3088.2,2.805]
[1720527042507,2.75331323,3089.0,3088.2,2.805]
[1720527042706,0.81053336,3088.9,3088.2,2.805]
[1720527042909,0.53520204,3088.9,3088.2,2.805]
[1720527043945,0.53520204,3088.9,3088.2,5.2459]
[1720527044146,0.33921323,3089.0,3087.9,5.805]
[1720527049354,0.33921323,3089.0,3088.0,0.06474922]
[1720527050688,0.33921323,3089.0,3088.3,2.805]
[1720527051743,0.33921323,3089.0,3088.4,0.06474922]
[1720527052356,0.33921323,3089.0,3088.3,2.805]
[1720527052577,0.33921323,3089.0,3088.0,0.06474924]
[1720527052744,0.33921323,3089.0,3088.9,1.169]
[1720527053867,0.33921323,3089.0,3087.9,3.0]
[1720527054074,0.33921323,3089.0,3088.8,1.169]
[1720527056053,0.5352134,3089.2,3088.8,1.169]
[1720527056262,7.36,3089.5,3088.5,2.4337]
[1720527056263,0.5352134,3089.4,3089.1,1.169]
[1720527056453,0.5352134,3089.4,3089.3,1.169]
[1720527057583,1.58952063,3089.4,3089.3,1.169]
[1720527057755,1.58952063,3089.4,3089.1,1.169]
[1720527058348,1.58952063,3089.4,3088.9,1.169]
[1720527058690,2.4232,3089.3,3088.9,1.169]
[1720527058859,0.5352134,3089.2,3088.9,1.169]
[1720527059074,0.93648546,3089.2,3088.9,1.169]
[1720527059399,0.40127206,3089.2,3088.9,1.169]
[1720527059551,0.93645648,3089.2,3088.9,1.169]
[1720527059755,0.9364855,3089.2,3088.9,1.169]
[1720527061076,0.9364855,3089.2,3089.1,1.169]
[1720527061263,0.53521344,3089.2,3089.1,1.169]
[1720527061951,0.53502653,3089.2,3089.1,1.169]
[1720527062598,0.53502653,3089.2,3088.5,2.806]
[1720527063249,0.53502653,3089.2,3088.6,0.06474311]
[1720527063454,0.53502653,3089.2,3088.8,2.4826]
[1720527063692,0.53502653,3089.4,3088.9,2.87073496]
[1720527063997,7.36,3089.5,3089.3,2.806]
[1720527064286,7.36,3089.5,3089.4,5.4323]
[1720527065690,3.23,3090.2,3089.4,5.4323]
[1720527065894,3.23,3090.2,3089.7,2.806]
[1720527066056,3.23,3090.2,3089.8,0.06472137]
[1720527067005,3.23,3090.2,3089.7,2.806]
[1720527067174,2.4021,3091.1,3089.8,3.06471683]
[1720527067496,2.4021,3091.1,3090.6,2.806]
[1720527068356,3.23,3091.5,3090.7,0.06470407]
[1720527068592,3.23,3091.5,3090.6,2.806]
[1720527068800,3.23,3091.5,3090.7,3.0]
[1720527069598,3.23,3091.5,3090.8,2.4809]
[1720527069798,3.23,3091.5,3091.0,2.806]
[1720527070963,2.3883,3092.1,3091.0,2.806]
[1720527071800,2.2967,3092.9,3091.5,2.806]
[1720527071965,3.75967,3092.8,3091.6,0.06468493]
[1720527072401,3.75967,3092.8,3091.5,2.806]
[1720527072767,3.75967,3092.8,3091.6,0.06468139]
[1720527073167,3.75967,3092.8,3091.6,0.06468135]
[1720527075221,0.55,3092.7,3091.6,0.06468135]
[1720527075373,1.210637,3092.7,3091.6,0.06468135]
[1720527075870,3.23,3092.8,3091.7,2.403]
[1720527077280,3.23,3092.8,3091.8,0.06467578]
[1720527077481,3.23,3092.8,3091.9,2.8706697]
[1720527078710,3.23,3092.8,3091.9,2.87066972]
[1720527078914,3.23,3092.8,3091.9,2.806]
[1720527081193,3.23,3092.8,3092.0,0.06467457]
[1720527081999,2.285,3093.3,3092.3,2.806]
[1720527082196,7.36,3093.4,3092.5,2.4663]
[1720527082598,7.36,3093.4,3092.6,0.06465761]
[1720527083006,7.36,3093.4,3092.5,2.4663]
[1720527083216,8.096,3093.4,3092.3,2.806]
[1720527084223,0.55,3093.3,3092.3,2.806]
[1720527084590,2.3585,3093.2,3092.3,2.806]
[1720527086497,3.45895,3093.2,3092.3,2.806]
[1720527086697,3.50719599,3093.2,3091.9,2.806]
[1720527087031,3.50719599,3093.2,3092.0,3.0]
[1720527089228,3.50719599,3093.2,3091.9,2.806]
[1720527089465,2.389,3093.0,3091.5,2.806]
[1720527089618,2.389,3092.8,3091.5,2.806]
[1720527089814,0.04824599,3092.7,3091.5,2.806]
[1720527090129,0.7937246,3092.6,3091.5,2.806]
[1720527090659,0.04824599,3092.5,3091.5,2.806]
[1720527091442,2.3478,3092.4,3091.5,2.806]
[1720527091652,0.04824599,3092.3,3091.1,2.806]
[1720527091858,0.64285059,3092.3,3091.1,2.806]
[1720527092063,0.59824599,3092.2,3091.1,2.806]
[1720527092755,2.4777,3092.1,3091.1,2.806]
[1720527092956,2.4777,3092.1,3090.7,2.806]
[1720527092957,0.55,3092.0,3090.7,2.806]
[1720527093113,0.3075946,3091.9,3090.7,2.806]
[1720527093319,0.55,3091.8,3090.7,2.806]
[1720527094149,0.55,3091.8,3090.8,3.0]
[1720527094324,9.8377,3092.1,3090.9,0.06469829]
[1720527094527,9.8377,3092.1,3091.1,2.806]
[1720527094919,9.8377,3092.1,3091.2,0.06469059]
[1720527095117,7.36,3092.1,3091.2,0.06469059]
[1720527095322,7.36,3092.1,3091.5,2.806]
[1720527095763,7.36,3092.1,3091.1,2.806]
[1720527095944,8.096,3092.1,3091.1,2.806]
[1720527096144,7.36,3092.1,3091.1,2.806]
[1720527096520,2.31874599,3092.0,3090.8,3.0]
[1720527096752,2.2705,3092.0,3090.8,3.0]
[1720527096956,7.36,3092.1,3090.8,3.06469863]
[1720527097138,7.36,3092.1,3090.8,3.0]
[1720527097864,8.096,3092.1,3090.8,3.06468707]
[1720527098358,0.55,3092.0,3090.8,3.06468707]
[1720527098561,0.55,3092.0,3090.8,3.0]
[1720527099353,0.55,3092.0,3090.8,3.06469577]
[1720527099532,1.4146,3092.0,3090.8,3.06469577]
[1720527104864,1.4146,3092.0,3090.8,5.32799577]
[1720527105049,7.36,3092.1,3090.8,5.32799577]
[1720527105226,5.4251,3092.4,3091.1,2.806]
[1720527105227,12.7851,3092.4,3091.1,2.806]
[1720527105427,3.55,3092.3,3091.2,0.06468984]
[1720527105675,1.33351,3092.2,3091.2,0.06468984]
[1720527105874,1.33351,3092.2,3091.1,2.806]
[1720527107642,1.38175599,3092.2,3091.1,2.806]
[1720527108229,1.33351,3092.2,3091.1,2.806]
[1720527109968,2.367,3092.0,3090.8,5.2633]
[1720527110141,2.792051,3092.0,3090.8,2.2633]
[1720527110342,0.55,3091.9,3090.7,2.806]
[1720527111166,1.08425031,3091.9,3090.7,2.806]
[1720527111681,3.04824599,3091.8,3090.4,2.2652]
[1720527111835,2.3298,3091.6,3090.4,2.2652]
[1720527112180,0.5826261,3091.5,3090.4,2.2652]
[1720527112831,0.53438011,3091.5,3090.3,2.806]
[1720527113028,0.55,3091.4,3090.3,2.806]
[1720527113278,0.89141801,3091.4,3090.3,2.806]
[1720527113958,0.34141801,3091.4,3090.4,0.0647086]
[1720527114159,0.53438011,3091.5,3090.4,2.3657]
[1720527115376,2.3298,3091.6,3090.4,2.3657]
[1720527115577,1.0843322,3091.5,3090.4,2.3657]
[1720527116996,0.5343322,3091.5,3090.4,2.3657]
[1720527117276,2.3298,3091.6,3090.5,0.06470525]
[1720527117780,4.22178,3091.6,3090.4,2.3657]
[1720527117961,0.55,3091.5,3090.4,2.3657]
[1720527118134,1.08431964,3091.5,3090.3,2.87070286]
[1720527118341,1.08434261,3091.5,3090.3,2.806]
[1720527118641,2.23795257,3091.5,3090.3,2.806]
[1720527118941,1.70360996,3091.5,3090.3,2.806]
[1720527119474,1.75185595,3091.5,3090.3,2.806]
[1720527119680,1.70360996,3091.5,3090.3,2.806]
[1720527120478,1.70360996,3091.5,3090.3,2.87070539]
[1720527120980,2.3298,3091.6,3090.7,2.806]
[1720527122844,3.23,3091.7,3090.8,0.06469845]
[1720527123444,3.27824599,3091.7,3090.7,2.806]
[1720527123950,4.59052059,3091.7,3090.4,5.271]
[1720527124163,2.3262,3091.5,3090.3,2.806]
[1720527124369,1.13261473,3091.4,3090.3,2.806]
[1720527124568,1.48527076,3091.4,3090.0,5.35]
[1720527124893,1.48525915,3091.4,3090.0,5.35]
[1720527125091,1.53350514,3091.4,3090.0,5.35]
[1720527125455,0.33896668,3091.3,3090.0,5.35]
[1720527125990,0.33896668,3091.3,3090.1,0.06470844]
[1720527126362,0.33896668,3091.3,3090.0,5.35]
[1720527126598,0.33896668,3091.3,3090.3,2.806]
[1720527130639,0.33896668,3091.3,3090.4,3.06470456]
[1720527131149,0.33896668,3091.3,3090.7,2.806]
[1720527131351,0.33896668,3091.3,3090.7,5.1905]
[1720527131511,0.33896668,3091.3,3090.8,3.0]
[1720527140110,0.33896668,3091.3,3090.8,3.06469641]
[1720527140314,0.33896668,3091.3,3090.8,3.0]
[1720527142928,2.3733,3091.2,3090.7,2.806]
[1720527143127,0.53414602,3091.1,3090.3,2.806]
[1720527145124,2.3733,3091.2,3090.3,2.806]
[1720527145335,0.53434134,3091.1,3090.3,2.806]
[1720527147373,2.3967,3090.9,3090.0,3.0]
[1720527147534,0.58258733,3090.8,3089.9,2.806]
[1720527147735,0.04824599,3090.7,3089.9,2.806]
[1720527148068,0.38725338,3090.7,3089.9,2.806]
[1720527148774,0.33900739,3090.7,3089.9,2.806]
[1720527149373,0.70064993,3090.7,3089.9,2.806]
[1720527150484,0.33900739,3090.7,3089.9,2.806]
[1720527151349,0.33900739,3090.7,3090.0,0.06471458]
[1720527151585,0.33900739,3090.7,3090.3,2.806]
[1720527152982,0.33900739,3090.7,3090.4,0.06471098]
[1720527153185,0.5343883,3091.1,3090.4,3.06471098]
[1720527153389,0.5343883,3091.1,3090.4,0.06471098]
[1720527153895,0.33896767,3091.2,3090.7,2.806]
[1720527154187,0.5341067,3091.4,3090.7,2.806]
[1720527154386,0.53413702,3091.4,3090.7,2.806]
[1720527155381,0.53417889,3091.4,3090.4,3.0]
[1720527155701,2.3829,3091.2,3090.4,3.0]
[1720527155855,0.53417889,3091.1,3090.4,3.0]
[1720527157269,2.3829,3091.2,3090.5,0.06470558]
[1720527157682,2.3829,3091.2,3090.4,3.0]
[1720527157683,0.53421317,3091.1,3090.4,3.0]
[1720527157987,0.53424013,3091.1,3090.4,3.0]
[1720527158192,0.53424013,3091.1,3090.3,2.806]
[1720527158697,2.3829,3091.2,3090.3,2.806]
[1720527158858,0.53425018,3091.1,3090.3,2.806]
[1720527159058,2.3829,3091.2,3090.3,2.806]
[1720527159265,0.53424871,3091.1,3090.3,2.806]
[1720527159986,2.37334599,3091.0,3089.9,2.806]
[1720527160197,2.3251,3090.8,3088.9,3.14985161]
[1720527160365,2.3251,3090.6,3089.1,2.806]
[1720527160560,2.3251,3090.6,3088.4,0.67935161]
[1720527160561,2.3058,3090.4,3088.7,2.806]
[1720527160792,2.3058,3090.2,3088.6,2.806]
[1720527161009,2.3058,3090.0,3088.6,2.806]
[1720527161211,2.3058,3089.8,3088.6,2.806]
[1720527161369,0.53424871,3089.7,3088.6,2.806]
[1720527161702,0.53424871,3089.7,3088.7,0.06474282]
[1720527162210,0.5344982,3089.7,3089.0,2.806]
[1720527162375,2.3058,3089.8,3089.1,3.06473051]
[1720527163503,2.4449,3090.4,3089.1,3.06473051]
[1720527163661,2.4449,3090.4,3089.4,2.806]
[1720527163859,2.4449,3090.4,3089.5,3.0]
[1720527164302,3.01239,3090.4,3089.5,3.0]
[1720527170184,2.4449,3090.4,3089.5,3.0]
[1720527172123,3.23,3090.5,3089.5,3.0]
[1720527172124,3.23,3090.5,3089.6,0.06472732]
[1720527172986,3.23,3090.5,3089.5,3.0]
[1720527175322,3.23,3090.5,3089.6,0.06472445]
[1720527175534,2.3827,3090.7,3089.6,0.06472445]
[1720527175919,2.3827,3090.7,3089.5,3.0]
[1720527176829,3.35697,3090.7,3089.5,3.0]
[1720527177033,0.53718569,3090.6,3089.5,3.0]
[1720527177205,0.58543168,3090.6,3089.5,3.0]
[1720527177406,0.55,3090.5,3089.5,3.0]
[1720527178526,1.08708939,3090.6,3089.5,3.0]
[1720527178696,2.26749533,3090.6,3089.5,3.0]
[1720527179031,1.73040594,3090.6,3089.5,3.0]
[1720527180553,1.18040594,3090.6,3089.6,0.06472734]
[1720527180713,2.3827,3090.7,3089.6,0.06472734]
[1720527182200,7.36,3090.8,3089.7,2.4795]
[1720527182424,7.36,3090.8,3089.9,2.806]
[1720527182741,10.59,3091.2,3090.0,0.06471331]
[1720527182911,3.23,3091.2,3090.0,0.06471331]
[1720527183116,3.23,3091.2,3090.3,5.2414]
[1720527183309,2.3273,3091.4,3090.4,0.06470676]
[1720527184025,2.3273,3091.4,3090.4,3.06470676]
[1720527184815,2.3273,3091.4,3090.4,3.0]
[1720527185137,0.76986327,3091.3,3090.4,3.0]
[1720527185698,0.53713327,3091.3,3090.4,3.0]
[1720527185901,7.36,3091.6,3090.4,3.0]
[1720527185902,0.53713327,3091.5,3090.4,3.0]
[1720527186405,0.53713327,3091.5,3090.4,3.06470595]
[1720527186656,7.36,3091.6,3090.4,3.06470595]
[1720527187647,0.53700229,3091.5,3090.4,3.06470595]
[1720527187852,0.53700229,3091.5,3090.4,3.0]
[1720527188220,0.5370311,3091.5,3090.4,3.0]
[1720527189549,0.5370311,3091.5,3090.5,0.06470079]
[1720527189761,7.36,3091.6,3090.5,0.06470079]
[1720527194036,8.33713,3091.6,3090.5,0.06470079]
[1720527194535,0.97713,3091.6,3090.5,0.06470079]
[1720527194736,0.53685333,3091.6,3090.5,0.06470079]
[1720527195032,2.4113,3091.7,3090.5,0.06470079]
[1720527195241,0.53684617,3091.6,3090.5,0.06470079]
[1720527195460,2.4113,3091.7,3090.5,0.06470079]
[1720527196589,3.0,3091.8,3090.6,2.3747]
[1720527196789,0.5367692,3091.7,3090.7,0.06470088]
[1720527196985,1.21344612,3091.7,3090.7,0.06470088]
[1720527197186,0.67667692,3091.7,3090.7,0.06470088]
[1720527197397,0.53676835,3091.8,3090.7,0.06470088]
[1720527198509,3.23,3091.9,3090.7,0.06470088]
[1720527198680,1.08689991,3091.8,3090.7,0.06470088]
[1720527199472,0.55,3091.8,3090.7,0.06470088]
[1720527199672,0.55,3091.8,3090.7,2.87070088]
[1720527199901,0.55,3091.8,3090.8,0.06470085]
[1720527200494,3.23,3091.9,3090.8,0.06470085]
[1720527201900,3.23,3091.9,3090.9,2.4988]
[1720527202094,3.23,3091.9,3091.0,0.06469473]
[1720527204705,3.7787,3091.9,3090.9,2.4988]
[1720527210220,3.7787,3091.9,3091.0,0.06469682]
[1720527210535,3.23,3091.9,3091.0,0.06469682]
[1720527212325,3.23,3091.9,3090.9,2.4988]
[1720527214711,3.23,3091.9,3091.4,1.167]
[1720527215640,0.33894027,3091.8,3091.4,1.167]
[1720527216084,0.87575789,3091.8,3091.4,1.167]
[1720527216527,0.87574362,3091.8,3091.4,1.167]
[1720527216728,0.87574362,3091.8,3091.2,1.167]
[1720527219227,0.87513993,3091.8,3091.2,1.167]
[1720527220922,0.04824599,3091.7,3090.5,2.4487]
[1720527221136,2.3255,3091.6,3090.9,1.167]
[1720527221303,2.3255,3091.6,3090.5,2.4487]
[1720527221304,0.58444565,3091.5,3090.5,2.4487]
[1720527221514,0.58444565,3091.5,3090.7,1.167]
[1720527221836,0.29099456,3091.4,3090.7,1.167]
[1720527221991,0.04824599,3091.3,3090.7,1.167]
[1720527222494,0.04824599,3091.3,3090.9,1.167]
[1720527222694,0.29099456,3091.4,3090.9,1.167]
[1720527224818,0.53586344,3091.5,3091.1,1.167]
[1720527225631,0.53606637,3091.5,3091.1,1.167]
[1720527226136,0.53607409,3091.5,3091.1,1.167]
[1720527228912,2.3255,3091.6,3091.1,1.167]
[1720527229132,1.08624419,3091.5,3091.1,1.167]
[1720527229436,0.53624419,3091.5,3091.4,1.167]
[1720527229736,0.53624419,3091.7,3091.4,1.167]
[1720527229911,0.53624419,3091.7,3091.6,1.167]
[1720527232344,7.69894027,3091.8,3091.6,1.167]
[1720527232543,0.53611367,3091.7,3091.4,1.167]
[1720527234539,0.53611367,3091.7,3091.6,1.167]
[1720527236215,0.53589735,3091.7,3091.6,1.167]
[1720527236801,0.53589136,3091.7,3091.6,1.167]
[1720527239237,0.71357553,3091.7,3091.6,1.167]
[1720527241635,7.36,3091.8,3091.6,1.167]
[1720527241838,0.71360633,3091.7,3091.6,1.167]
[1720527242658,0.71360633,3091.7,3091.4,1.167]
[1720527242844,0.80736063,3091.6,3091.2,1.167]
[1720527243042,0.80736063,3091.6,3090.6,5.4437]
[1720527243043,3.08696063,3091.6,3090.6,5.4437]
[1720527243252,0.76185232,3091.5,3090.6,2.4437]
[1720527243421,0.55,3091.4,3090.7,1.167]
[1720527243720,0.04824599,3091.3,3089.8,2.4271]
[1720527243916,0.04824599,3091.3,3090.5,1.167]
[1720527243917,2.3257,3091.1,3090.5,1.167]
[1720527244140,0.33581599,3091.0,3090.5,1.167]
[1720527244521,0.33581599,3091.0,3089.9,2.803]
[1720527244522,1.04942232,3091.0,3089.9,2.803]
[1720527244721,0.76185232,3091.0,3089.9,2.803]
[1720527244953,0.76178578,3091.0,3089.9,2.803]
[1720527245320,0.7135443,3091.0,3089.9,2.803]
[1720527245961,0.71345285,3091.0,3089.9,2.803]
[1720527246660,0.71345285,3091.0,3090.0,3.0]
[1720527247171,0.04824599,3090.9,3090.0,3.0]
[1720527247376,0.71345285,3091.0,3090.0,3.0]
[1720527247547,1.07236814,3091.0,3090.0,3.0]
[1720527247743,0.71345285,3091.0,3090.0,2.33860911]
[1720527248166,2.3257,3091.1,3090.3,2.803]
[1720527248366,0.7130833,3091.0,3090.3,2.803]
[1720527250776,10.69899044,3091.5,3089.6,3.0]
[1720527250777,7.36,3091.5,3090.9,5.0704]
[1720527250983,7.36,3091.5,3091.4,2.803]
[1720527251133,5.599,3091.9,3091.4,2.803]
[1720527251134,12.959,3091.9,3091.4,2.803]
[1720527251334,0.71307073,3091.8,3091.4,2.803]
[1720527251568,12.959,3091.9,3091.4,2.803]
[1720527251778,12.959,3091.9,3091.0,2.803]
[1720527251779,0.7130717,3091.8,3091.0,2.803]
[1720527251987,12.959,3091.9,3091.0,2.803]
[1720527252165,0.71307982,3091.8,3091.0,2.803]
[1720527254991,12.959,3091.9,3091.0,2.803]
[1720527255207,0.71291643,3091.8,3091.0,2.803]
[1720527255696,0.71297071,3091.8,3091.0,2.803]
[1720527256100,12.959,3091.9,3091.0,2.803]
[1720527256264,0.71303672,3091.8,3091.0,2.803]
[1720527258156,0.71303672,3091.8,3090.6,5.154]
[1720527258371,2.08024039,3091.8,3090.7,3.0]
[1720527258557,0.76139669,3091.7,3090.7,3.0]
[1720527258959,0.7131507,3091.7,3090.7,3.0]
[1720527259154,0.20803544,3091.6,3090.6,5.154]
[1720527259466,2.3483,3091.5,3090.6,5.154]
[1720527259794,0.7131507,3091.4,3090.6,2.803]
[1720527260603,0.7131507,3091.4,3090.3,2.475]
[1720527261658,0.7131507,3091.4,3090.3,5.475]
[1720527261868,0.30614507,3091.3,3090.3,5.475]
[1720527263408,0.71273872,3091.4,3090.6,2.803]
[1720527264685,0.76098471,3091.4,3090.6,2.803]
[1720527265229,0.71262273,3091.4,3091.0,2.803]
[1720527265708,0.71243594,3091.4,3091.0,2.803]
[1720527265882,2.3483,3091.5,3091.0,2.803]
[1720527266516,0.71230688,3091.4,3091.0,2.803]
[1720527266925,2.3483,3091.5,3091.0,2.803]
[1720527267325,0.71226285,3091.4,3091.0,2.803]
[1720527267686,2.3483,3091.5,3091.0,2.803]
[1720527268819,2.3483,3091.5,3091.4,1.167]
[1720527269125,3.06037404,3091.5,3091.4,1.167]
[1720527270218,2.3483,3091.5,3091.4,1.167]
[1720527271033,3.06053715,3091.5,3091.4,1.167]
[1720527271800,3.06064343,3091.5,3091.4,1.167]
[1720527272196,15.49,3092.4,3091.4,1.167]
[1720527272415,0.71234566,3091.8,3091.6,1.167]
[1720527273499,10.59,3091.9,3091.6,1.167]
[1720527273700,10.59,3091.9,3091.8,1.167]
[1720527274011,11.30223987,3091.9,3091.8,1.167]
[1720527275200,10.59,3091.9,3091.8,1.167]
[1720527275401,11.30223147,3091.9,3091.8,1.167]
[1720527275725,11.30214339,3091.9,3091.8,1.167]
[1720527275896,10.59,3091.9,3091.8,1.167]
[1720527277914,3.23,3091.9,3091.8,1.167]
[1720527280137,7.36,3092.4,3091.8,1.167]
[1720527280319,2.3891,3092.6,3092.3,1.167]
[1720527280531,2.3891,3092.6,3091.6,2.2752]
[1720527280532,2.3891,3092.6,3092.5,1.167]
[1720527280952,7.36,3092.8,3092.5,1.167]
[1720527281117,0.71246944,3092.7,3092.5,1.167]
[1720527281322,8.34305,3092.8,3092.5,1.167]
[1720527282512,8.34305,3092.8,3091.9,2.8]
[1720527283111,7.36,3092.8,3091.9,2.8]
[1720527283738,2.4705,3092.9,3091.9,2.8]
[1720527283923,0.71246094,3092.8,3091.9,2.8]
[1720527284410,2.4705,3092.9,3091.9,2.8]
[1720527285355,0.71249741,3092.8,3091.9,2.8]
[1720527285552,2.4705,3092.9,3091.9,2.8]
[1720527285756,3.01755,3092.9,3091.9,2.8]
[1720527285916,2.3097,3093.0,3092.0,2.40227713]
[1720527286117,2.3097,3093.0,3092.0,5.40227713]
[1720527286768,2.3097,3093.0,3092.3,2.8]
[1720527287551,10.59,3093.2,3092.3,2.86467272]
[1720527288518,10.59,3093.2,3092.3,2.8]
[1720527289625,3.23,3093.2,3092.3,2.8]
[1720527290230,3.79644,3093.2,3092.3,2.8]
[1720527290570,3.79644,3093.2,3092.0,5.3376]
[1720527293549,3.84468599,3093.2,3092.0,5.3376]
[1720527295372,3.79644,3093.2,3092.0,5.3376]
[1720527299309,2.2752,3093.1,3092.0,5.3376]
[1720527299472,2.882364,3093.1,3092.0,5.3376]
[1720527300780,0.65540999,3093.1,3092.0,3.0]
[1720527300980,2.2752,3092.9,3091.5,2.8]
[1720527301166,2.2752,3092.7,3091.5,2.8]
[1720527301506,2.4321,3092.5,3091.1,5.22]
[1720527301720,2.4321,3092.3,3091.1,5.22]
[1720527302024,2.4321,3092.1,3090.7,2.8]
[1720527302305,2.2696,3091.9,3090.3,2.8]
[1720527302522,2.2696,3091.7,3090.3,2.8]
[1720527302667,1.3109763,3091.6,3090.9,1.168]
[1720527302977,0.04824599,3091.5,3090.9,1.168]
[1720527303182,0.04824599,3091.5,3091.1,1.168]
[1720527304420,0.2867846,3091.5,3091.1,1.168]
[1720527304623,0.55,3091.6,3090.4,2.3242]
[1720527304827,0.55,3091.6,3090.7,2.802]
[1720527305329,0.3030346,3092.0,3090.8,0.06470247]
[1720527305619,3.3030346,3092.0,3090.7,2.802]
[1720527305832,0.95330346,3091.9,3090.7,2.802]
[1720527306830,0.95330346,3091.9,3090.8,0.06469742]
[1720527307057,0.95330346,3091.9,3090.8,2.802]
[1720527310730,0.95330346,3091.9,3090.9,0.0646974]
[1720527311114,3.0,3092.0,3090.9,0.0646974]
[1720527311323,3.23,3092.1,3091.2,2.802]
[1720527313087,3.23,3092.1,3091.2,2.86668779]
[1720527313392,7.36,3092.5,3092.0,2.802]
[1720527313588,7.36,3092.9,3092.1,0.06467637]
[1720527314289,7.36,3092.9,3092.0,2.802]
[1720527317931,7.36,3092.9,3092.1,0.06467216]
[1720527318361,7.36,3092.9,3092.1,2.54467216]
[1720527319249,7.36,3093.3,3092.1,2.54467216]
[1720527319454,2.3158,3093.4,3092.1,2.54467216]
[1720527319625,2.3158,3093.4,3092.1,2.48]
[1720527319830,0.71329627,3093.3,3092.1,2.48]
[1720527320035,3.71329627,3093.3,3092.1,2.48]
[1720527320233,3.0,3093.3,3092.1,2.48]